bitfinex/quotes_BTCUSD_20250726
["timestamp","ask_amount","ask_price","bid_price","bid_amount"]
[1753567841223,1e-08,118220.0,118210.0,1.81406231]
[1753567841452,1e-08,118220.0,118210.0,1.49763202]
[1753567849306,0.0004,118230.0,118220.0,0.21200067]
[1753567849531,0.00044855,118230.0,118220.0,0.82919556]
[1753567849728,0.00044855,118230.0,118220.0,0.85510556]
[1753567850365,0.00044855,118230.0,118220.0,1.46060556]
[1753567850819,0.00044855,118230.0,118220.0,1.49280556]
[1753567851357,0.00044855,118230.0,118220.0,1.17837527]
[1753567851571,0.00044855,118230.0,118220.0,1.49480556]
[1753567851776,0.00044855,118230.0,118220.0,1.17837527]
[1753567851990,0.00044855,118230.0,118220.0,1.49480556]
[1753567852194,0.00044855,118230.0,118220.0,1.49380556]
[1753567852427,0.00044855,118230.0,118220.0,1.49580556]
[1753567852855,0.00044855,118230.0,118220.0,1.49480556]
[1753567853075,0.00044855,118230.0,118220.0,1.49680556]
[1753567854990,0.00044855,118230.0,118220.0,1.23130556]
[1753567856075,0.00044855,118230.0,118220.0,0.91487527]
[1753567856288,0.00044855,118230.0,118220.0,1.23130556]
[1753567860885,0.00044855,118230.0,118220.0,1.49680556]
[1753567868753,0.04961555,118250.0,118240.0,0.19451874]
[1753567868964,0.04961555,118250.0,118240.0,0.42889367]
[1753567868965,0.05116109,118250.0,118240.0,0.42889367]
[1753567870553,0.36759138,118250.0,118240.0,0.42889367]
[1753567871247,0.36825138,118250.0,118240.0,0.42889367]
[1753567872638,0.36759138,118250.0,118240.0,0.42889367]
[1753567877585,0.05116109,118250.0,118240.0,0.42889367]
[1753567878218,0.36759138,118250.0,118240.0,0.42889367]
[1753567879313,0.05116109,118250.0,118240.0,0.42889367]
[1753567879523,0.34867583,118250.0,118240.0,0.42889367]
[1753567879739,0.34867583,118250.0,118240.0,0.45316367]
[1753567880374,0.03224554,118250.0,118240.0,0.45316367]
[1753567880615,0.34867583,118250.0,118240.0,0.45316367]
[1753567881272,0.03224554,118250.0,118240.0,0.45316367]
[1753567881525,0.34867583,118250.0,118240.0,0.45316367]
[1753567881954,0.34867583,118250.0,118240.0,0.45610367]
[1753567882885,0.34867583,118250.0,118240.0,0.45816367]
[1753567884440,0.03224554,118250.0,118240.0,0.45816367]
[1753567884659,0.34867583,118250.0,118240.0,0.45816367]
[1753567890096,0.33317583,118250.0,118240.0,0.45816367]
[1753567890382,0.31797583,118250.0,118240.0,0.45816367]
[1753567891366,0.00154554,118250.0,118240.0,0.45816367]
[1753567891631,0.31797583,118250.0,118240.0,0.45816367]
[1753567893014,0.00154554,118250.0,118240.0,0.45816367]
[1753567893252,0.31797583,118250.0,118240.0,0.45816367]
[1753567893721,0.00048554,118250.0,118240.0,0.45816367]
[1753567893958,0.00048554,118250.0,118240.0,0.80619396]
[1753567894671,0.00048554,118250.0,118240.0,1.08914298]
[1753567895360,0.00048554,118250.0,118240.0,1.11271269]
[1753567895588,0.00048554,118250.0,118240.0,1.43014298]
[1753567895872,0.00048554,118250.0,118240.0,1.43114298]
[1753567896341,0.00048554,118250.0,118240.0,1.11471269]
[1753567896568,0.00048554,118250.0,118240.0,1.43114298]
[1753567908826,0.00048554,118250.0,118240.0,1.11471269]
[1753567909033,0.00048554,118250.0,118240.0,1.43114298]
[1753567911089,0.00048554,118250.0,118240.0,1.09714367]
[1753567911308,0.00048554,118250.0,118240.0,1.08144367]
[1753567912056,0.31797583,118250.0,118240.0,1.06348367]
[1753567912312,0.31797583,118250.0,118240.0,0.53803917]
[1753567912313,0.37555198,118250.0,118240.0,0.53803917]
[1753567912556,0.39312486,118250.0,118240.0,0.67601633]
[1753567912793,0.38466835,118250.0,118240.0,0.69293014]
[1753567913033,0.37621198,118250.0,118240.0,0.69293014]
[1753567913512,0.37555198,118250.0,118240.0,0.69293014]
[1753567913965,0.37555198,118250.0,118240.0,0.65910209]
[1753567914196,0.37555198,118250.0,118240.0,0.3519773]
[1753567914197,0.56159812,118250.0,118240.0,0.3519773]
[1753567914433,0.58560199,118250.0,118240.0,0.2675]
[1753567914679,0.58560199,118250.0,118240.0,0.002]
[1753567914680,1.21023226,118250.0,118240.0,0.002]
[1753567915176,6.29470956,118250.0,118240.0,0.002]
[1753567915412,0.51720776,118230.0,118220.0,0.1296]
[1753567915656,0.02315902,118210.0,118200.0,0.2030362]
[1753567915903,0.34910847,118210.0,118200.0,0.4172735]
[1753567916148,0.34064931,118210.0,118200.0,0.4172735]
[1753567916294,0.36802847,118210.0,118200.0,0.4172735]
[1753567916535,0.35956931,118210.0,118200.0,0.4172735]
[1753567917053,0.33291691,118210.0,118200.0,0.41732205]
[1753567917282,0.33291684,118210.0,118200.0,0.41732205]
[1753567917488,0.33291684,118210.0,118200.0,0.41832205]
[1753567917689,0.33291684,118210.0,118200.0,0.40986246]
[1753567917854,0.33291684,118210.0,118200.0,0.41832219]
[1753567918109,0.33291677,118210.0,118200.0,0.41832219]
[1753567918364,0.33291677,118210.0,118200.0,0.41932219]
[1753567918815,0.3244576,118210.0,118200.0,0.41932219]
[1753567919051,0.31599866,118210.0,118200.0,0.41932219]
[1753567919688,0.32445753,118210.0,118200.0,0.41932219]
[1753567919905,0.31599866,118210.0,118200.0,0.41932219]
[1753567920539,0.28967866,118210.0,118200.0,0.44387219]
[1753567921019,0.00836,118210.0,118200.0,0.44387219]
[1753567921432,0.00836,118210.0,118200.0,0.44685219]
[1753567922512,0.00106,118210.0,118200.0,0.44685219]
[1753567923106,0.2908376,118210.0,118200.0,0.44685219]
[1753567923382,0.28237866,118210.0,118200.0,0.44685219]
[1753567925062,0.00106,118210.0,118200.0,0.44685219]
[1753567925271,0.28237866,118210.0,118200.0,0.44685219]
[1753567925497,0.00106,118210.0,118200.0,0.44897219]
[1753567925944,0.00951887,118210.0,118200.0,0.44897219]
[1753567926174,0.00106,118210.0,118200.0,0.44897219]
[1753567927517,0.00951894,118210.0,118200.0,0.44897219]
[1753567927733,0.2908376,118210.0,118200.0,0.44897219]
[1753567927956,0.28237866,118210.0,118200.0,0.44897219]
[1753567928421,0.00106,118210.0,118200.0,0.44897219]
[1753567930220,0.00951894,118210.0,118200.0,0.44897219]
[1753567930895,0.00106,118210.0,118200.0,0.44897219]
[1753567931754,0.00951887,118210.0,118200.0,0.44897219]
[1753567932186,0.00106,118210.0,118200.0,0.44897219]
[1753567932837,0.34989652,118220.0,118210.0,0.18610909]
[1753567933067,0.37511532,118220.0,118210.0,0.17764986]
[1753567933286,0.37511532,118220.0,118210.0,0.19456839]
[1753567933513,0.37511532,118220.0,118210.0,0.18610916]
[1753567933948,0.37511532,118220.0,118210.0,0.19456839]
[1753567933949,0.36665652,118220.0,118210.0,0.19456839]
[1753567934172,0.37511532,118220.0,118210.0,0.19456839]
[1753567934393,0.36665652,118220.0,118210.0,0.19456839]
[1753567934617,0.37611532,118220.0,118210.0,0.19456839]
[1753567935083,0.37611532,118220.0,118210.0,0.18610916]
[1753567935965,0.54529143,118220.0,118210.0,0.16919042]
[1753567936183,0.54529143,118220.0,118210.0,0.18610923]
[1753567936602,0.54529143,118220.0,118210.0,0.17764986]
[1753567936837,0.54529143,118220.0,118210.0,0.18610923]
[1753567937075,0.58043641,118220.0,118210.0,0.19456853]
[1753567938261,0.57197804,118220.0,118210.0,0.17764986]
[1753567938487,0.57197804,118220.0,118210.0,0.18610916]
[1753567938871,0.02537769,118210.0,118200.0,0.42793266]
[1753567939092,0.35030085,118210.0,118200.0,0.43005266]
[1753567939306,0.52055127,118210.0,118200.0,0.11417585]
[1753567939515,0.54469358,118210.0,118200.0,0.08452585]
[1753567939716,0.54469358,118210.0,118200.0,0.12984855]
[1753567940128,0.55260274,118210.0,118200.0,0.12984855]
[1753567940686,0.55260274,118210.0,118200.0,0.13084855]
[1753567940889,0.51749819,118210.0,118200.0,0.13084855]
[1753567941702,0.53333632,118210.0,118200.0,0.12984855]
[1753567942124,0.53334622,118210.0,118200.0,0.12984855]
[1753567945035,0.53335219,118210.0,118200.0,0.12984855]
[1753567947539,0.53335219,118210.0,118200.0,4.855e-05]
[1753567947993,0.53929607,118210.0,118200.0,0.12976855]
[1753567949475,0.53335219,118210.0,118200.0,0.12976855]
[1753567949967,0.53435219,118210.0,118200.0,4.855e-05]
[1753567950354,0.53535219,118210.0,118200.0,4.855e-05]
[1753567953894,0.53535557,118210.0,118200.0,4.855e-05]
[1753567955083,0.51643557,118210.0,118200.0,4.855e-05]
[1753567955979,0.51643557,118210.0,118200.0,0.02481855]
[1753567956624,0.51643548,118210.0,118200.0,0.02481855]
[1753567959106,0.50113548,118210.0,118200.0,0.02481855]
[1753567959542,0.48583548,118210.0,118200.0,0.02481855]
[1753567959716,0.48583633,118210.0,118200.0,0.02481855]
[1753567961420,0.4858376,118210.0,118200.0,0.02481855]
[1753567961801,0.4858376,118210.0,118200.0,0.02779855]
[1753567962774,0.52101488,118210.0,118200.0,0.02779855]
[1753567965689,0.5210186,118210.0,118200.0,0.02779855]
[1753567966258,0.52102623,118210.0,118200.0,0.02779855]
[1753567967187,0.50517212,118210.0,118200.0,0.02779855]
[1753567969173,0.49724631,118210.0,118200.0,0.02779855]
[1753567978549,0.49724631,118210.0,118200.0,0.04339855]
[1753567980131,0.62680631,118210.0,118200.0,0.04339855]
[1753567980597,0.31026994,118210.0,118200.0,0.06057855]
[1753567980823,0.62680631,118210.0,118200.0,0.06057855]
[1753567983351,0.63533017,118210.0,118200.0,0.06057855]
[1753567983592,0.63533017,118210.0,118200.0,0.05849855]
[1753567984244,0.63533017,118210.0,118200.0,0.06057855]
[1753567989030,0.3187938,118210.0,118200.0,0.06057855]
[1753567989246,0.63427017,118210.0,118200.0,0.23824337]
[1753567989913,0.50471017,118210.0,118200.0,0.23824337]
[1753567990351,0.50471017,118210.0,118200.0,0.23824351]
[1753567991411,0.50471017,118210.0,118200.0,0.24670367]
[1753567991841,0.1881738,118210.0,118200.0,0.24670367]
[1753567992078,0.50471017,118210.0,118200.0,0.24670367]
[1753567992302,0.50471017,118210.0,118200.0,0.06057855]
[1753567993879,0.50471017,118210.0,118200.0,0.06903878]
[1753567994321,0.50471017,118210.0,118200.0,0.23824351]
[1753567995187,0.50471017,118210.0,118200.0,0.24670367]
[1753567995402,0.50471017,118210.0,118200.0,0.23824351]
[1753567995614,0.50471017,118210.0,118200.0,0.25516376]
[1753567996688,0.50471017,118210.0,118200.0,0.26362378]
[1753567996894,0.50471017,118210.0,118200.0,0.25516376]
[1753567998008,0.50471017,118210.0,118200.0,0.26362378]
[1753567998447,0.01052386,118210.0,118200.0,0.58861981]
[1753567998674,0.01052386,118210.0,118200.0,1.07036689]
[1753567998675,0.002,118210.0,118200.0,1.07036689]
[1753567998916,0.002,118210.0,118200.0,0.75383052]
[1753567999140,0.002,118210.0,118200.0,1.07036689]
[1753568000024,0.001,118210.0,118200.0,0.75383052]
[1753568000260,0.02538992,118220.0,118210.0,0.22566811]
[1753568000494,0.02538992,118220.0,118210.0,0.67384448]
[1753568000725,0.01691653,118220.0,118210.0,0.70081448]
[1753568000941,0.00845823,118220.0,118210.0,0.70081448]
[1753568001150,0.00845816,118220.0,118210.0,0.70081398]
[1753568001574,0.00945816,118220.0,118210.0,0.70081398]
[1753568002536,0.01045816,118220.0,118210.0,0.70081398]
[1753568004959,0.01901177,118220.0,118210.0,0.70081398]
[1753568005661,0.01055361,118220.0,118210.0,0.70081398]
[1753568006007,0.01901184,118220.0,118210.0,0.38427761]
[1753568006235,0.01901184,118220.0,118210.0,0.70081398]
[1753568007015,0.01055361,118220.0,118210.0,0.78529128]
[1753568008838,0.002,118220.0,118210.0,0.86976858]
[1753568011844,0.002,118220.0,118210.0,0.55323221]
[1753568012050,0.002,118220.0,118210.0,0.86976858]
[1753568025030,0.001,118220.0,118210.0,0.86976858]
[1753568025849,0.01710682,118230.0,118220.0,0.22575165]
[1753568026197,0.03382877,118240.0,118230.0,0.18607747]
[1753568026383,0.03488877,118240.0,118230.0,0.32401513]
[1753568027170,0.03488877,118240.0,118230.0,0.34777513]
[1753568027828,0.03788877,118240.0,118230.0,0.34777513]
[1753568028129,0.0294314,118240.0,118230.0,0.37143271]
[1753568028347,0.02097367,118240.0,118230.0,0.39204271]
[1753568028563,0.03143068,118240.0,118230.0,0.39204271]
[1753568028768,0.03882784,118240.0,118230.0,0.39204271]
[1753568028985,0.02191367,118240.0,118230.0,0.39204271]
[1753568029870,0.02184063,118240.0,118230.0,0.39204271]
[1753568030100,0.0218407,118240.0,118230.0,0.70857908]
[1753568030324,0.03029764,118240.0,118230.0,0.39204271]
[1753568030913,0.03875465,118240.0,118230.0,0.39204271]
[1753568032724,0.03875465,118240.0,118230.0,0.38358513]
[1753568032925,0.03875465,118240.0,118230.0,0.39204271]
[1753568033560,0.04721173,118240.0,118230.0,0.39204271]
[1753568033967,0.05566896,118240.0,118230.0,0.38358513]
[1753568034448,0.04721173,118240.0,118230.0,0.38358513]
[1753568034652,0.04721173,118240.0,118230.0,0.39204271]
[1753568036495,0.05566889,118240.0,118230.0,0.39204271]
[1753568038090,0.0133839,118240.0,118230.0,0.39204271]
[1753568038278,0.005,118240.0,118230.0,0.79305638]
[1753568039549,0.002,118240.0,118230.0,0.79305638]
[1753568039768,0.003,118240.0,118230.0,0.79305638]
[1753568040411,0.001,118240.0,118230.0,0.79305638]
[1753568040841,0.002,118240.0,118230.0,0.79305638]
[1753568041048,0.002,118240.0,118230.0,0.87753368]
[1753568043465,0.002,118240.0,118230.0,1.19407005]
[1753568043889,0.002,118240.0,118230.0,0.87753368]
[1753568044104,0.0088553,118260.0,118250.0,0.21070229]
[1753568044336,0.00146,118260.0,118250.0,0.34014229]
[1753568044551,0.0099153,118260.0,118250.0,0.34220229]
[1753568044764,0.00146,118260.0,118250.0,0.38537229]
[1753568044978,0.02682654,118260.0,118250.0,0.37691621]
[1753568045199,0.34336291,118260.0,118250.0,0.34315621]
[1753568045455,0.34584845,118260.0,118250.0,0.30702977]
[1753568045582,0.37322432,118260.0,118250.0,0.30702977]
[1753568045765,0.36476845,118260.0,118250.0,0.31548621]
[1753568046006,0.36776845,118260.0,118250.0,0.31548628]
[1753568046216,0.36776845,118260.0,118250.0,0.32394272]
[1753568047199,0.36776845,118260.0,118250.0,0.31548628]
[1753568047338,0.36776845,118260.0,118250.0,0.33239909]
[1753568047567,0.36776845,118260.0,118250.0,0.32394272]
[1753568047792,0.37639984,118260.0,118250.0,0.32394272]
[1753568048009,0.05986347,118260.0,118250.0,0.31548628]
[1753568048213,0.38485564,118260.0,118250.0,0.31548628]
[1753568048436,0.38485564,118260.0,118250.0,0.32394272]
[1753568049218,0.39331158,118260.0,118250.0,0.30702977]
[1753568049507,0.38485564,118260.0,118250.0,0.32394272]
[1753568049863,0.37639984,118260.0,118250.0,0.32394272]
[1753568050067,0.35747984,118260.0,118250.0,0.32394272]
[1753568050474,0.35747984,118260.0,118250.0,0.34858272]
[1753568050717,0.35747984,118260.0,118250.0,0.35703909]
[1753568051276,0.35747984,118260.0,118250.0,0.34858272]
[1753568051469,0.35747976,118260.0,118250.0,0.35703909]
[1753568051867,0.36593549,118260.0,118250.0,0.34858272]
[1753568052473,0.36593549,118260.0,118250.0,0.35703909]
[1753568052675,0.36593549,118260.0,118250.0,0.34858272]
[1753568053204,0.36593549,118260.0,118250.0,0.36006909]
[1753568053930,0.36593549,118260.0,118250.0,0.35161272]
[1753568055370,0.37439129,118260.0,118250.0,0.35161272]
[1753568055555,0.36593549,118260.0,118250.0,0.36006909]
[1753568055981,0.36593549,118260.0,118230.0,0.4107091]
[1753568055982,0.01691388,118240.0,118230.0,0.4107091]
[1753568056184,0.33451004,118240.0,118230.0,0.44454058]
[1753568056396,0.34296705,118240.0,118230.0,0.44454058]
[1753568056658,0.32605317,118240.0,118230.0,0.37058093]
[1753568056829,0.32605317,118240.0,118230.0,0.38648093]
[1753568057092,0.02643104,118240.0,118230.0,0.40308093]
[1753568057298,0.03382834,118240.0,118230.0,0.40308093]
[1753568058073,0.04228571,118240.0,118230.0,0.40308093]
[1753568059363,0.04228571,118240.0,118230.0,0.39462335]
[1753568059753,0.35882208,118240.0,118230.0,0.40308093]
[1753568061145,0.04228571,118240.0,118230.0,0.40308093]
[1753568061398,0.35882208,118240.0,118230.0,0.40308093]
[1753568061610,0.04228571,118240.0,118230.0,0.40308093]
[1753568062257,0.03382834,118240.0,118230.0,0.40308093]
[1753568064739,0.50365839,118240.0,118230.0,0.15707]
[1753568065098,0.19453491,118230.0,118220.0,0.2447535]
[1753568065302,0.18609343,118220.0,118210.0,0.24476931]
[1753568065520,0.02537569,118220.0,118210.0,0.478755]
[1753568065740,0.01691696,118220.0,118210.0,0.48721402]
[1753568066357,0.01691653,118220.0,118210.0,0.48721402]
[1753568066608,0.02537504,118220.0,118210.0,0.48726257]
[1753568066758,0.02556784,118220.0,118210.0,0.48726257]
[1753568066954,0.03402635,118220.0,118210.0,0.48726257]
[1753568067173,0.02556784,118220.0,118210.0,0.48726257]
[1753568067582,0.02556784,118220.0,118210.0,0.80379894]
[1753568067786,0.01691653,118220.0,118210.0,0.80379894]
[1753568068423,0.02537504,118220.0,118210.0,0.80379894]
[1753568068855,0.02537504,118220.0,118210.0,0.48726257]
[1753568069163,0.02537504,118220.0,118210.0,0.80379894]
[1753568069562,0.03383363,118220.0,118210.0,0.80379894]
[1753568070396,0.04229568,118220.0,118210.0,0.80379894]
[1753568071379,0.03383363,118220.0,118210.0,0.80379894]
[1753568071581,0.02537504,118220.0,118210.0,0.80379894]
[1753568075123,0.04252138,118220.0,118210.0,0.80379894]
[1753568076104,0.03406272,118220.0,118210.0,0.80379894]
[1753568076318,0.02537504,118220.0,118210.0,0.80379894]
[1753568078584,0.0338337,118220.0,118210.0,0.80379894]
[1753568078812,0.02537504,118220.0,118210.0,0.80379894]
[1753568079749,0.03376075,118220.0,118210.0,0.80379894]
[1753568080526,0.03376075,118220.0,118210.0,0.48726257]
[1753568080723,0.04221941,118220.0,118210.0,0.80379894]
[1753568081117,0.03376075,118220.0,118210.0,0.80379894]
[1753568081722,0.04221941,118220.0,118210.0,0.80379894]
[1753568081850,0.04221934,118220.0,118210.0,0.80379894]
[1753568082732,0.03376075,118220.0,118210.0,0.80379894]
[1753568086432,0.03376075,118220.0,118210.0,0.48726257]
[1753568086635,0.03376075,118220.0,118210.0,0.80379894]
[1753568091532,0.04221934,118220.0,118210.0,0.80379894]
[1753568094234,0.050678,118220.0,118210.0,0.80379894]
[1753568095683,0.04221934,118220.0,118210.0,0.80379894]
[1753568095903,0.04221934,118220.0,118210.0,0.48726257]
[1753568096155,0.04221934,118220.0,118210.0,0.80379894]
[1753568098786,0.02530224,118220.0,118210.0,0.80379894]
[1753568099852,0.02530217,118220.0,118210.0,0.80379894]
[1753568100429,0.0253021,118220.0,118210.0,0.80379894]
[1753568100850,0.0253021,118220.0,118210.0,0.48726257]
[1753568101059,0.03376047,118220.0,118210.0,0.48726257]
[1753568101283,0.03376047,118220.0,118210.0,0.80379894]
[1753568101920,0.04221898,118220.0,118210.0,0.48726257]
[1753568102136,0.03376047,118220.0,118210.0,0.80379894]
[1753568102353,0.01691431,118240.0,118230.0,0.17761974]
[1753568102584,0.20308548,118240.0,118230.0,0.65250618]
[1753568103042,0.18723117,118240.0,118230.0,0.33596974]
[1753568103253,0.18723117,118240.0,118230.0,0.15835]
[1753568103472,0.18723117,118240.0,118230.0,0.16680809]
[1753568103683,0.18923117,118240.0,118230.0,0.16680809]
[1753568103898,0.18923117,118240.0,118230.0,0.34442783]
[1753568104098,0.19223117,118240.0,118230.0,0.3444279]
[1753568104298,0.19223117,118240.0,118230.0,0.33596989]
[1753568104513,0.53223117,118240.0,118230.0,0.33596989]
[1753568104726,0.53223117,118240.0,118230.0,0.34442783]
[1753568106624,0.53223117,118240.0,118230.0,0.3444279]
[1753568107156,0.53223117,118240.0,118230.0,0.33596989]
[1753568107464,0.52366479,118240.0,118230.0,0.3444279]
[1753568107684,0.52366479,118240.0,118230.0,0.33596989]
[1753568107932,0.52366479,118240.0,118230.0,0.3275118]
[1753568108380,0.52366479,118240.0,118230.0,0.3254418]
[1753568109135,0.52366479,118240.0,118230.0,0.15628]
[1753568109585,0.84020116,118240.0,118230.0,0.15628]
[1753568110062,0.84020116,118240.0,118230.0,0.15314]
[1753568115528,0.84860202,118240.0,118230.0,0.15314]
[1753568116551,0.84860202,118240.0,118230.0,0.15628]
[1753568121534,0.97808202,118240.0,118230.0,0.15628]
[1753568121927,0.17761974,118230.0,118220.0,0.0553]
[1753568122142,0.17763477,118220.0,118210.0,0.05778855]
[1753568122354,0.50368973,118220.0,118210.0,4.855e-05]
[1753568122561,0.50368973,118220.0,118210.0,0.15302855]
[1753568122780,0.18715336,118220.0,118210.0,0.15302855]
[1753568123012,0.50368973,118220.0,118210.0,0.15616855]
[1753568125644,1.02398973,118220.0,118210.0,4.855e-05]
[1753568125827,1.02464973,118220.0,118210.0,4.855e-05]
[1753568126246,1.02398973,118220.0,118210.0,4.855e-05]
[1753568126898,1.02598973,118220.0,118210.0,4.855e-05]
[1753568127815,1.02898973,118220.0,118210.0,4.855e-05]
[1753568130766,1.02964973,118220.0,118210.0,4.855e-05]
[1753568131223,1.02898973,118220.0,118210.0,4.855e-05]
[1753568133361,0.69675336,118220.0,118210.0,4.855e-05]
[1753568133573,0.66057336,118220.0,118210.0,0.23760841]
[1753568133782,0.66057336,118220.0,118210.0,0.25452694]
[1753568133996,0.35345823,118220.0,118210.0,0.57952233]
[1753568134194,0.37037504,118220.0,118210.0,0.57952233]
[1753568134462,0.37037504,118220.0,118210.0,0.81812719]
[1753568134463,0.005,118220.0,118210.0,0.81812719]
[1753568134874,0.01345816,118220.0,118210.0,0.78275285]
[1753568135080,0.01345816,118220.0,118210.0,0.75810529]
[1753568135256,0.005,118220.0,118210.0,0.75810529]
[1753568138131,0.01345823,118220.0,118210.0,0.75810529]
[1753568138387,0.02191653,118220.0,118210.0,0.75810529]
[1753568138632,0.02191653,118220.0,118210.0,0.47694326]
[1753568138882,0.19955172,118220.0,118210.0,0.23760841]
[1753568139126,0.19955172,118220.0,118210.0,4.855e-05]
[1753568139127,0.18369484,118220.0,118210.0,4.855e-05]
[1753568139366,0.18369484,118220.0,118210.0,0.02370807]
[1753568139606,0.18369484,118220.0,118210.0,0.24696793]
[1753568139844,0.18369484,118220.0,118210.0,0.2554273]
[1753568140047,0.18369484,118220.0,118210.0,0.2638866]
[1753568140238,0.18263484,118220.0,118210.0,0.2638866]
[1753568140875,0.18263484,118220.0,118210.0,0.2554273]
[1753568141076,0.31211484,118220.0,118210.0,0.2638866]
[1753568141492,0.31211484,118220.0,118210.0,0.2554273]
[1753568141633,0.31211484,118220.0,118210.0,0.24696793]
[1753568142055,0.31211484,118220.0,118210.0,0.06931807]
[1753568142477,0.31211484,118220.0,118210.0,0.24696793]
[1753568143933,0.31211484,118220.0,118210.0,0.2554273]
[1753568144134,0.31211484,118220.0,118210.0,0.24696793]
[1753568144839,0.31211484,118220.0,118210.0,0.2554273]
[1753568147076,0.31211484,118220.0,118210.0,0.2638866]
[1753568147581,0.31211484,118220.0,118210.0,0.27234583]
[1753568149780,0.31211484,118220.0,118210.0,0.2554273]
[1753568151983,0.30365611,118220.0,118210.0,0.24696793]
[1753568153362,0.30365611,118220.0,118210.0,0.06085855]
[1753568153576,0.30471611,118220.0,118210.0,0.06085855]
[1753568154435,0.30471611,118220.0,118210.0,0.06931807]
[1753568154861,0.62114933,118220.0,118210.0,0.06931807]
[1753568155281,0.62114933,118220.0,118210.0,0.06085855]
[1753568160905,0.62114933,118220.0,118210.0,0.06931807]
[1753568162848,0.62114933,118220.0,118210.0,0.24696793]
[1753568163059,0.30471611,118220.0,118210.0,0.25542723]
[1753568163318,0.62008933,118220.0,118210.0,0.25542723]
[1753568163995,0.62008933,118220.0,118210.0,0.24696793]
[1753568164363,0.30365611,118220.0,118210.0,0.24696793]
[1753568166208,0.30365611,118220.0,118210.0,0.2554273]
[1753568167936,0.30365611,118220.0,118210.0,0.58031982]
[1753568168587,0.30365611,118220.0,118210.0,0.2638866]
[1753568168973,0.31211484,118220.0,118210.0,0.27234583]
[1753568169178,0.15139724,118220.0,118210.0,0.27234512]
[1753568169800,0.15985604,118220.0,118210.0,0.27234512]
[1753568174079,0.15985604,118220.0,118210.0,0.25542687]
[1753568174560,0.31211491,118220.0,118210.0,0.56340086]
[1753568176116,0.31211491,118220.0,118210.0,0.24696764]
[1753568178323,0.30365611,118220.0,118210.0,0.23850849]
[1753568178559,0.30365611,118220.0,118210.0,0.24696793]
[1753568179009,0.30365611,118220.0,118210.0,0.25542723]
[1753568179459,0.30365611,118220.0,118210.0,0.24696793]
[1753568181779,0.30365611,118220.0,118210.0,0.2554273]
[1753568182282,0.30365611,118220.0,118210.0,0.24696793]
[1753568185563,0.30365611,118220.0,118210.0,0.06931807]
[1753568190443,0.30365611,118220.0,118210.0,0.23850849]
[1753568191026,0.30357611,118220.0,118210.0,0.23850849]
[1753568191607,0.17417611,118220.0,118210.0,0.23850849]
[1753568191991,0.30357611,118220.0,118210.0,0.23850849]
[1753568195199,0.30357611,118220.0,118210.0,0.06931807]
[1753568198835,0.30357611,118220.0,118210.0,0.06085855]
[1753568200718,0.30463611,118220.0,118210.0,0.06085855]
[1753568204604,0.30463611,118220.0,118210.0,0.06931807]
[1753568205025,0.30463611,118220.0,118210.0,0.07777751]
[1753568205470,0.30463611,118220.0,118210.0,0.24696793]
[1753568205673,0.30463611,118220.0,118210.0,0.2554273]
[1753568211268,0.30463611,118220.0,118210.0,0.24696793]
[1753568212988,0.30463611,118220.0,118210.0,0.23850849]
[1753568216194,0.30463611,118220.0,118210.0,0.24696793]
[1753568216461,0.30357611,118220.0,118210.0,0.24696793]
[1753568219263,0.30357611,118220.0,118210.0,0.23850849]
[1753568219893,0.30357611,118220.0,118210.0,0.24696793]
[1753568220518,0.30357611,118220.0,118210.0,0.2554273]
[1753568221998,0.17417611,118220.0,118210.0,0.58031982]
[1753568223906,0.17417611,118220.0,118210.0,0.57186052]
[1753568224154,0.17417611,118220.0,118210.0,0.24696793]
[1753568226331,0.17417611,118220.0,118210.0,0.56340115]
[1753568227138,0.17417611,118220.0,118210.0,0.06931807]
[1753568227568,0.17417611,118220.0,118210.0,0.06085855]
[1753568228230,0.17417611,118220.0,118210.0,0.06931807]
[1753568228522,0.17417611,118220.0,118210.0,0.24696793]
[1753568228882,0.17417611,118220.0,118210.0,0.06085855]
[1753568231928,0.85058933,118220.0,118210.0,4.855e-05]
[1753568232133,0.89198628,118220.0,118210.0,4.855e-05]
[1753568232391,0.89198369,118220.0,118210.0,4.855e-05]
[1753568232813,0.93326906,118220.0,118210.0,4.855e-05]
[1753568233208,0.91739969,118220.0,118210.0,4.855e-05]
[1753568234942,0.90946533,118220.0,118210.0,4.855e-05]
[1753568235691,0.91739429,118220.0,118210.0,4.855e-05]
[1753568237639,0.91673429,118220.0,118210.0,4.855e-05]
[1753568238930,0.93258574,118220.0,118210.0,4.855e-05]
[1753568239396,0.92465678,118220.0,118210.0,4.855e-05]
[1753568239831,0.60822356,118220.0,118210.0,4.855e-05]
[1753568240051,0.92465678,118220.0,118210.0,4.855e-05]
[1753568240512,0.51764979,118210.0,118200.0,0.05288855]
[1753568240724,0.96336301,118210.0,118200.0,0.05501855]
[1753568241184,0.64692979,118210.0,118200.0,0.05501855]
[1753568241980,0.64792979,118210.0,118200.0,0.05501855]
[1753568242671,0.64892979,118210.0,118200.0,0.05501855]
[1753568243575,0.68072981,118210.0,118200.0,0.05501855]
[1753568243779,0.64892979,118210.0,118200.0,0.05501855]
[1753568244642,0.96536301,118210.0,118200.0,0.05501855]
[1753568246707,0.64892979,118210.0,118200.0,0.05501855]
[1753568247151,0.96536301,118210.0,118200.0,0.05501855]
[1753568249406,0.97382231,118210.0,118200.0,0.05501855]
[1753568249578,0.96536301,118210.0,118200.0,0.05501855]
[1753568257965,0.64892979,118210.0,118200.0,0.05501855]
[1753568258166,0.96536301,118210.0,118200.0,0.05501855]
[1753568265012,0.96642301,118210.0,118200.0,0.05501855]
[1753568265636,0.98229807,118210.0,118200.0,0.05501855]
[1753568266702,0.85195807,118210.0,118200.0,0.05501855]
[1753568266909,0.002,118210.0,118200.0,1.01170956]
[1753568267578,0.002,118210.0,118200.0,1.08660327]
[1753568267793,0.002,118210.0,118200.0,1.17108057]
[1753568269737,0.01045902,118210.0,118200.0,1.09618686]
[1753568269946,0.01045902,118210.0,118200.0,0.77975364]
[1753568270692,0.01045894,118210.0,118200.0,0.77975364]
[1753568273009,0.002,118210.0,118200.0,0.77975364]
[1753568273436,0.01045887,118210.0,118200.0,0.77975364]
[1753568275707,0.002,118210.0,118200.0,0.77975364]
[1753568276483,0.01045887,118210.0,118200.0,0.77975364]
[1753568277091,0.01045887,118210.0,118200.0,0.80616405]
[1753568277406,0.002,118210.0,118200.0,0.80616405]
[1753568278141,0.002,118210.0,118200.0,1.12259727]
[1753568279220,0.002,118210.0,118200.0,0.80616405]
[1753568279742,0.01045887,118210.0,118200.0,0.80616405]
[1753568280585,0.002,118210.0,118200.0,0.80616405]
[1753568280771,0.002,118210.0,118200.0,0.77975364]
[1753568281205,0.002,118210.0,118200.0,1.09618686]
[1753568282136,0.002,118210.0,118200.0,0.77975364]
[1753568282823,0.002,118210.0,118200.0,0.46332042]
[1753568283048,0.002,118210.0,118200.0,1.09618686]
[1753568283274,0.002,118210.0,118200.0,1.1611328]
[1753568283496,0.002,118210.0,118200.0,1.09618686]
[1753568284392,0.36537275,118230.0,118220.0,0.19455165]
[1753568284611,0.36542128,118230.0,118220.0,0.67260494]